fUSD/lending_fUSD_20250905
["ID","MTS","AMOUNT","RATE_DAILY","PERIOD"]
[383651006,1757071778460,-500.0,0.00022973,2]
[383651007,1757071778483,-500.0,0.00022973,2]
[383651008,1757071778506,-502.60581236,0.00022973,2]
[383651009,1757071778528,-500.0,0.00022973,2]
[383651010,1757071778556,-500.0,0.00022973,2]
[383651011,1757071778581,-236.06658241,0.00022973,2]
[383651012,1757071779242,-263.93341759,0.00022973,2]
[383651013,1757071779264,-500.0,0.00022973,2]
[383651014,1757071779287,-500.0,0.00022973,2]
[383651015,1757071779309,-500.0,0.00022973,2]
[383651016,1757071779331,-500.58211312,0.00022973,2]
[383651017,1757071779352,-501.54102562,0.00022973,2]
[383651018,1757071779373,-503.17218825,0.00022973,2]
[383651019,1757071779395,-178.39501043,0.00022977,2]
[383651020,1757071779416,-151.0,0.00022977,7]
[383651021,1757071779438,-670.9787268,0.00022979,2]
[383651022,1757071779459,-1002.1917,0.00022979,2]
[383651023,1757071779480,-152.70877039,0.00022979,2]
[383651024,1757071779504,-9575.4970478,0.0002298,3]
[383651025,1757071780748,-15000.0,0.0002298,3]
[383651026,1757071782240,-15000.0,0.0002298,3]
[383651027,1757071784818,-15000.0,0.0002298,3]
[383651028,1757071800771,-617.56,0.0002268,2]
[383651029,1757071800794,-358.34377738,0.0002288,2]
[383651030,1757071800820,-1168.82627304,0.0002298,3]
[383651031,1757071800841,-10123.26994958,0.0002298,2]
[383651067,1757071831573,-151.77,0.0002297,2]
[383651070,1757071831583,-151.77,0.0002297,2]
[383651073,1757071831593,-137.94428669,0.0002297,2]
[383651077,1757071831625,-13.82571331,0.0002297,2]
[383651080,1757071831636,-501.54868394,0.00022973,2]
[383651082,1757071831648,-609.1641638,0.00022973,2]
[383651085,1757071831657,-212.36434613,0.00022973,2]
[383651088,1757071831667,-151.0,0.00022977,7]
[383651091,1757071831676,-1200.0,0.00022979,2]
[383651093,1757071831685,-300.0,0.00022979,2]
[383651096,1757071831695,-150.0,0.00022979,2]
[383651097,1757071831706,-150.0,0.00022979,2]
[383651099,1757071831715,-27872.16166041,0.0002298,3]
[383651100,1757071831726,-51045.00442967,0.0002298,2]
[383651101,1757071831739,-1400.0,0.0002298,2]
[383651102,1757071831751,-352146.0511511,0.0002298,2]
[383651103,1757071831762,-356830.521,0.0002298,2]
[383651104,1757071831773,-31024.16982132,0.0002298,2]
[383651105,1757071831809,-2254.06158146,0.0002298,2]
[383651106,1757071831830,-1615.00378799,0.0002298,2]
[383651107,1757071831842,-814.82102388,0.0002298,2]
[383651108,1757071831855,-788.66028383,0.0002298,2]
[383651109,1757071831872,-2783.47707019,0.0002298,2]
[383651110,1757071831894,-74570.2457662,0.0002298,2]
[383651111,1757071831907,-655.78640123,0.0002298,2]
[383651113,1757071831920,-758.22424816,0.0002298,2]
[383651114,1757071831933,-466.76144635,0.0002298,2]
[383651115,1757071831944,-1328.035,0.0002298,2]
[383651296,1757071837507,-500.0,0.00022972,2]
[383651297,1757071837516,-500.0,0.00022972,2]
[383651298,1757071837526,-149.5,0.00022972,2]
[383651299,1757071837572,-316.73,0.00022972,2]
[383651300,1757071837672,-33.77,0.00022972,2]
[383651301,1757071837682,-500.0,0.00022972,2]
[383651302,1757071837692,-500.0,0.00022972,2]
[383651303,1757071837701,-500.0,0.00022972,2]
[383651304,1757071837711,-500.0,0.00022972,2]
[383651305,1757071837722,-254.97605732,0.00022972,2]
[383651306,1757071837731,-500.0,0.00022972,2]
[383651307,1757071837739,-290.97754616,0.00022979,2]
[383651308,1757071837748,-178.42871889,0.00022979,2]
[383651309,1757071837757,-2196.20767763,0.0002298,2]
[383651310,1757071837801,-3799.44438748,0.0002298,2]
[383651311,1757071837812,-614.68697519,0.0002298,2]
[383651312,1757071837824,-826804.00903723,0.0002298,2]
[383651314,1757071837833,-155.553932,0.0002298,7]
[383651316,1757071837842,-151.0,0.0002298,7]
[383651318,1757071837851,-151.0,0.0002298,7]
[383651320,1757071837860,-200.0,0.0002298,2]
[383651322,1757071837868,-3010.69135387,0.00023,3]
[383651324,1757071837877,-1000.0,0.00023023,3]
[383651326,1757071837886,-320.806,0.00023023,3]
[383651328,1757071837895,-202.0,0.000231,2]
[383651330,1757071837903,-200.0,0.0002321,2]
[383651332,1757071837910,-9324.08812216,0.00023217,2]
[383651333,1757071837918,-157.21,0.00023334,2]
[383651335,1757071837926,-9248.20482342,0.00023335,2]
[383651337,1757071837934,-200.0,0.00023442,2]
[383651339,1757071837944,-954.04783781,0.00023521,2]
[383651342,1757071837954,-602.8429969,0.00023521,2]
[383651343,1757071837963,-9324.08812216,0.00023554,2]
[383651346,1757071837973,-154.38,0.00023733,2]
[383651348,1757071837982,-9248.20482342,0.00023791,2]
[383651349,1757071837992,-151.0,0.00023791,7]
[383651352,1757071838001,-9324.08812216,0.00023891,2]
[383651354,1757071838011,-841.61885968,0.00023913,2]
[383651356,1757071838022,-1881.49340793,0.00023933,2]
[383651358,1757071838031,-151.77,0.0002399,2]
[383651360,1757071838040,-2000.0,0.00024,2]
[383651362,1757071838050,-5000.0,0.00024,2]
[383651364,1757071838059,-139542.10504541,0.00024,5]
[383651366,1757071838068,-151.0,0.00024,7]
[383651367,1757071838077,-151.77,0.00024023,2]
[383651368,1757071838086,-151.77,0.00024023,2]
[383651370,1757071838096,-151.0,0.0002403,7]
[383651372,1757071838105,-151.0,0.0002403,7]
[383651374,1757071838114,-219.9890138,0.00024032,2]
[383651376,1757071838123,-4237.2060086,0.00024033,2]
[383651378,1757071838132,-828.2889094,0.00024033,2]
[383651380,1757071838142,-852.229319,0.00024033,2]
[383651382,1757071838151,-342146.8975081,0.00024033,2]
[383651383,1757071838160,-5149.4812298,0.00024033,2]
[383651384,1757071838170,-3024.2359472,0.00024033,2]
[383651385,1757071838179,-500.0,0.00024073,2]
[383651386,1757071838188,-271.35815612,0.00024073,2]
[383651387,1757071838198,-504.98609994,0.00024073,2]
[383651388,1757071838207,-500.0,0.00024073,2]
[383651389,1757071838216,-500.0,0.00024073,2]
[383651390,1757071838226,-500.33326919,0.00024073,2]
[383651391,1757071838235,-500.0,0.00024073,2]
[383651392,1757071838244,-500.0,0.00024073,2]
[383651393,1757071838253,-503.42772203,0.00024073,2]
[383651394,1757071838263,-500.0,0.00024073,2]
[383651395,1757071838272,-500.0,0.00024073,2]
[383651396,1757071838282,-500.80992563,0.00024073,2]
[383651397,1757071838291,-500.0,0.00024073,2]
[383651398,1757071838300,-205.52730009,0.00024073,2]
[383651399,1757071838310,-501.54984894,0.00024073,2]
[383651400,1757071838319,-500.0,0.00024073,2]
[383651401,1757071838328,-500.0,0.00024073,2]
[383651402,1757071838337,-13045.49554193,0.00024121,2]
[383651403,1757071838346,-271.34,0.00024128,2]
[383651404,1757071838356,-9324.08812216,0.00024228,2]
[383651405,1757071838365,-9248.20482342,0.00024246,2]
[383651406,1757071838375,-198.0,0.0002428,2]
[383651407,1757071838385,-154.38,0.00024357,2]
[383651408,1757071838394,-3010.69135387,0.0002439,2]
[383651409,1757071838403,-646.65982734,0.00024395,2]
[383651410,1757071838413,-151.0,0.00024395,2]
[383651411,1757071838422,-8565.75555911,0.00024395,2]
[383651412,1757071838431,-1000.0,0.00024395,2]
[383651413,1757071838440,-187.78006525,0.00024395,2]
[383651414,1757071838449,-250.0,0.00024395,2]
[383651415,1757071838459,-250.0,0.00024395,2]
[383651416,1757071838468,-151.0,0.00024395,2]
[383651417,1757071838477,-250.0,0.00024395,2]
[383651418,1757071838486,-248.71531821,0.00024395,2]
[383651419,1757071838495,-250.0,0.00024395,2]
[383651420,1757071838504,-160.0,0.00024395,2]
[383651421,1757071838513,-151.0,0.00024395,2]
[383651422,1757071838523,-157.21,0.00024446,2]
[383651423,1757071838532,-206.52,0.00024456,2]
[383651424,1757071838542,-172.07766637,0.00024512,2]
[383651425,1757071838551,-9324.08812216,0.00024564,2]
[383651426,1757071838561,-756.27596668,0.000246,2]
[383651427,1757071838575,-1000.0,0.00024621,2]
[383651428,1757071838584,-504.92142487,0.00024621,2]
[383651429,1757071838593,-500.0,0.00024621,2]
[383651430,1757071838602,-1000.0,0.00024621,2]
[383651431,1757071838613,-226.78069773,0.00024621,2]
[383651432,1757071838623,-501.34920423,0.00024621,2]
[383651433,1757071838634,-1000.0,0.00024621,2]
[383651434,1757071838643,-151.77,0.00024647,2]
[383651435,1757071838653,-400.0,0.00024657,2]
[383651436,1757071838664,-400.0,0.00024657,2]
[383651437,1757071838673,-400.0,0.00024657,2]
[383651438,1757071838682,-403.37555497,0.00024657,2]
[383651439,1757071838691,-400.0,0.00024657,2]
[383651440,1757071838700,-400.0,0.00024657,2]
[383651441,1757071838709,-400.0,0.00024657,2]
[383651442,1757071838719,-400.0,0.00024657,2]
[383651443,1757071838728,-400.0,0.00024657,2]
[383651444,1757071838738,-400.0,0.00024657,2]
[383651445,1757071838747,-407.67234105,0.00024657,2]
[383651446,1757071838757,-400.0,0.00024657,2]
[383651447,1757071838766,-400.0,0.00024657,2]
[383651448,1757071838776,-400.0,0.00024657,2]
[383651449,1757071838785,-400.0,0.00024657,2]
[383651450,1757071838795,-400.0,0.00024657,2]
[383651451,1757071838808,-400.0,0.00024657,2]
[383651452,1757071838828,-400.0,0.00024657,2]
[383651453,1757071838843,-401.74074663,0.00024657,2]
[383651454,1757071838852,-400.0,0.00024657,2]
[383651455,1757071838861,-400.0,0.00024657,2]
[383651456,1757071838871,-400.0,0.00024657,2]
[383651457,1757071838880,-400.0,0.00024657,2]
[383651458,1757071838890,-400.0,0.00024657,2]
[383651459,1757071838901,-400.0,0.00024657,2]
[383651460,1757071838910,-400.0,0.00024657,2]
[383651461,1757071838919,-400.0,0.00024657,2]
[383651462,1757071838928,-400.0,0.00024657,2]
[383651463,1757071838938,-402.30090953,0.00024657,2]
[383651464,1757071838947,-400.0,0.00024657,2]
[383651465,1757071838956,-400.0,0.00024657,2]
[383651466,1757071838965,-400.0,0.00024657,2]
[383651467,1757071838974,-400.0,0.00024657,2]
[383651468,1757071838984,-400.0,0.00024657,2]
[383651469,1757071838993,-400.0,0.00024657,2]
[383651470,1757071839003,-400.0,0.00024657,2]
[383651471,1757071839013,-400.0,0.00024657,2]
[383651472,1757071839023,-400.0,0.00024657,2]
[383651473,1757071839033,-400.0,0.00024657,2]
[383651474,1757071839042,-400.0,0.00024657,2]
[383651475,1757071839052,-400.0,0.00024657,2]
[383651476,1757071839061,-409.88619731,0.00024657,2]
[383651477,1757071839070,-400.0,0.00024657,2]
[383651478,1757071839079,-400.0,0.00024657,2]
[383651479,1757071839089,-182.07366,0.00024657,2]
[383651480,1757071839098,-161.289803,0.00024657,2]
[383651481,1757071839108,-400.0,0.00024657,2]
[383651482,1757071839118,-400.0,0.00024657,2]
[383651483,1757071839127,-400.0,0.00024657,2]
[383651484,1757071839137,-400.0,0.00024657,2]
[383651485,1757071839146,-400.0,0.00024657,2]
[383651486,1757071839155,-400.0,0.00024657,2]
[383651487,1757071839164,-377.13069991,0.00024657,2]
[383651488,1757071839174,-400.0,0.00024657,2]
[383651489,1757071839183,-400.0,0.00024657,2]
[383651490,1757071839192,-400.0,0.00024657,2]
[383651491,1757071839201,-400.0,0.00024657,2]
[383651492,1757071839211,-400.0,0.00024657,2]
[383651493,1757071839221,-400.0,0.00024657,2]
[383651494,1757071839232,-400.0,0.00024657,2]
[383651495,1757071839241,-400.0,0.00024657,2]
[383651496,1757071839253,-170.755922,0.00024657,2]
[383651497,1757071839262,-400.0,0.00024657,2]
[383651498,1757071839273,-400.0,0.00024657,2]
[383651499,1757071839282,-400.0,0.00024657,2]
[383651500,1757071839291,-400.0,0.00024657,2]
[383651501,1757071839300,-400.0,0.00024657,2]
[383651502,1757071839311,-400.0,0.00024657,2]
[383651503,1757071839322,-400.0,0.00024657,2]
[383651504,1757071839334,-400.0,0.00024657,2]
[383651505,1757071839343,-400.0,0.00024657,2]
[383651506,1757071839353,-405.06870046,0.00024657,2]
[383651507,1757071839363,-400.0,0.00024657,2]
[383651508,1757071839373,-400.0,0.00024657,2]
[383651509,1757071839382,-500.0,0.00024657,2]
[383651510,1757071839392,-500.0,0.00024657,2]
[383651511,1757071839402,-500.0,0.00024657,2]
[383651512,1757071839411,-500.0,0.00024657,2]
[383651513,1757071839420,-516.32504354,0.00024657,2]
[383651514,1757071839430,-400.0,0.00024657,2]
[383651515,1757071839439,-400.0,0.00024657,2]
[383651516,1757071839449,-400.0,0.00024657,2]
[383651517,1757071839459,-400.0,0.00024657,2]
[383651518,1757071839468,-400.0,0.00024657,2]
[383651519,1757071839478,-400.0,0.00024657,2]
[383651520,1757071839488,-532.3,0.00024657,2]
[383651521,1757071839497,-400.0,0.00024657,2]
[383651522,1757071839507,-400.0,0.00024657,2]
[383651523,1757071839516,-400.0,0.00024657,2]
[383651524,1757071839524,-400.0,0.00024657,2]
[383651525,1757071839534,-400.0,0.00024657,2]
[383651526,1757071839543,-400.0,0.00024657,2]
[383651528,1757071839553,-400.0,0.00024657,2]
[383651530,1757071839562,-400.0,0.00024657,2]
[383651532,1757071839579,-400.0,0.00024657,2]
[383651534,1757071839588,-400.0,0.00024657,2]
[383651536,1757071839598,-400.0,0.00024657,2]
[383651538,1757071839609,-188.27162229,0.00024657,2]
[383651540,1757071839618,-467.31188813,0.00024657,2]
[383651542,1757071839627,-400.0,0.00024657,2]
[383651543,1757071839636,-402.67314739,0.00024657,2]
[383651544,1757071839647,-400.0,0.00024657,2]
[383651545,1757071839657,-400.0,0.00024657,2]
[383651546,1757071839667,-431.2799423,0.00024657,2]
[383651547,1757071839677,-294.39222729,0.00024657,2]
[383651548,1757071839686,-400.0,0.00024657,2]
[383651549,1757071839696,-400.0,0.00024657,2]
[383651550,1757071839705,-400.0,0.00024657,2]
[383651551,1757071839714,-400.0,0.00024657,2]
[383651552,1757071839724,-400.0,0.00024657,2]
[383651553,1757071839735,-401.89322216,0.00024657,2]
[383651554,1757071839744,-400.0,0.00024657,2]
[383651555,1757071839753,-400.0,0.00024657,2]
[383651556,1757071839763,-400.0,0.00024657,2]
[383651557,1757071839773,-279.37870262,0.00024657,2]
[383651558,1757071839782,-163.0395622,0.00024657,2]
[383651559,1757071839792,-400.0,0.00024657,2]
[383651560,1757071839801,-400.0,0.00024657,2]
[383651561,1757071839810,-400.0,0.00024657,2]
[383651562,1757071839820,-400.0,0.00024657,2]
[383651563,1757071839830,-400.0,0.00024657,2]
[383651564,1757071839839,-400.0,0.00024657,2]
[383651565,1757071839848,-400.0,0.00024657,2]
[383651566,1757071839866,-1000.0,0.00024657,2]
[383651567,1757071839876,-400.0,0.00024657,2]
[383651568,1757071839885,-400.0,0.00024657,2]
[383651569,1757071839894,-400.0,0.00024657,2]
[383651570,1757071839903,-400.0,0.00024657,2]
[383651571,1757071839913,-400.0,0.00024657,2]
[383651572,1757071839923,-400.0,0.00024657,2]
[383651573,1757071839932,-400.0,0.00024657,2]
[383651574,1757071839943,-545.74897828,0.00024657,2]
[383651575,1757071839952,-400.0,0.00024657,2]
[383651576,1757071839962,-400.0,0.00024657,2]
[383651577,1757071839972,-400.0,0.00024657,2]
[383651578,1757071839982,-400.0,0.00024657,2]
[383651579,1757071839991,-400.0,0.00024657,2]
[383651580,1757071840001,-401.81703981,0.00024657,2]
[383651581,1757071840010,-400.0,0.00024657,2]
[383651582,1757071840020,-400.0,0.00024657,2]
[383651583,1757071840029,-400.0,0.00024657,2]
[383651584,1757071840039,-400.0,0.00024657,2]
[383651585,1757071840049,-400.0,0.00024657,2]
[383651586,1757071840060,-400.0,0.00024657,2]
[383651587,1757071840069,-400.0,0.00024657,2]
[383651588,1757071840080,-400.0,0.00024657,2]
[383651589,1757071840090,-408.53347225,0.00024657,2]
[383651590,1757071840100,-400.0,0.00024657,2]
[383651591,1757071840110,-400.0,0.00024657,2]
[383651592,1757071840120,-400.0,0.00024657,2]
[383651593,1757071840130,-400.0,0.00024657,2]
[383651594,1757071840139,-403.7792473,0.00024657,2]
[383651595,1757071840149,-400.0,0.00024657,2]
[383651597,1757071840159,-400.0,0.00024657,2]
[383651599,1757071840169,-400.0,0.00024657,2]
[383651601,1757071840178,-500.0,0.00024657,2]
[383651603,1757071840187,-500.0,0.00024657,2]
[383651605,1757071840197,-500.0,0.00024657,2]
[383651607,1757071840206,-500.0,0.00024657,2]
[383651609,1757071840215,-500.0,0.00024657,2]
[383651611,1757071840225,-500.0,0.00024657,2]
[383651613,1757071840235,-500.0,0.00024657,2]
[383651615,1757071840245,-500.0,0.00024657,2]
[383651617,1757071840255,-500.0,0.00024657,2]
[383651619,1757071840267,-400.0,0.00024657,2]
[383651621,1757071840279,-400.0,0.00024657,2]
[383651623,1757071840289,-400.0,0.00024657,2]
[383651626,1757071840298,-400.0,0.00024657,2]
[383651627,1757071840308,-400.0,0.00024657,2]
[383651630,1757071840318,-400.0,0.00024657,2]
[383651632,1757071840328,-400.0,0.00024657,2]
[383651634,1757071840338,-400.0,0.00024657,2]
[383651636,1757071840347,-400.0,0.00024657,2]
[383651638,1757071840356,-524.02,0.00024657,2]
[383651640,1757071840367,-400.0,0.00024657,2]
[383651642,1757071840376,-400.0,0.00024657,2]
[383651644,1757071840386,-400.0,0.00024657,2]
[383651646,1757071840396,-400.0,0.00024657,2]
[383651648,1757071840405,-400.0,0.00024657,2]
[383651650,1757071840415,-400.0,0.00024657,2]
[383651652,1757071840424,-400.0,0.00024657,2]
[383651653,1757071840434,-400.0,0.00024657,2]
[383651654,1757071840443,-400.0,0.00024657,2]
[383651655,1757071840452,-400.0,0.00024657,2]
[383651656,1757071840462,-400.0,0.00024657,2]
[383651657,1757071840471,-400.0,0.00024657,2]
[383651658,1757071840481,-400.0,0.00024657,2]
[383651659,1757071840490,-400.0,0.00024657,2]
[383651660,1757071840499,-400.0,0.00024657,2]
[383651661,1757071840509,-400.0,0.00024657,2]
[383651662,1757071840518,-400.0,0.00024657,2]
[383651663,1757071840530,-400.0,0.00024657,2]
[383651664,1757071840539,-771.8,0.00024657,2]
[383651665,1757071840548,-400.0,0.00024657,2]
[383651666,1757071840557,-771.8,0.00024657,2]
[383651667,1757071840570,-771.8,0.00024657,2]
[383651668,1757071840579,-771.8,0.00024657,2]
[383651669,1757071840588,-503.95616298,0.00024657,2]
[383651670,1757071840597,-771.8,0.00024657,2]
[383651671,1757071840607,-771.8,0.00024657,2]
[383651672,1757071840618,-771.8,0.00024657,2]
[383651673,1757071840627,-771.8,0.00024657,2]
[383651674,1757071840636,-771.8,0.00024657,2]
[383651675,1757071840646,-400.0,0.00024657,2]
[383651676,1757071840655,-400.0,0.00024657,2]
[383651677,1757071840664,-400.0,0.00024657,2]
[383651678,1757071840674,-400.0,0.00024657,2]
[383651679,1757071840683,-400.0,0.00024657,2]
[383651680,1757071840692,-1143.26,0.00024657,2]
[383651681,1757071840701,-400.0,0.00024657,2]
[383651682,1757071840711,-389.71131219,0.00024657,2]
[383651683,1757071840720,-400.0,0.00024657,2]
[383651684,1757071840955,-400.0,0.00024657,2]
[383651685,1757071840965,-400.0,0.00024657,2]
[383651686,1757071840974,-400.0,0.00024657,2]
[383651687,1757071840984,-400.0,0.00024657,2]
[383651688,1757071840993,-883.23,0.00024657,2]
[383651689,1757071841003,-423.83429462,0.00024657,2]
[383651690,1757071841012,-400.0,0.00024657,2]
[383651691,1757071841022,-400.0,0.00024657,2]
[383651692,1757071841032,-561.64,0.00024657,2]
[383651693,1757071841041,-381.70925977,0.00024657,2]
[383651694,1757071841050,-400.0,0.00024657,2]
[383651695,1757071841060,-400.0,0.00024657,2]
[383651696,1757071841069,-401.01665829,0.00024657,2]
[383651697,1757071841079,-400.0,0.00024657,2]
[383651698,1757071841088,-535.08,0.00024657,2]
[383651699,1757071841097,-400.0,0.00024657,2]
[383651700,1757071841106,-400.0,0.00024657,2]
[383651701,1757071841115,-400.0,0.00024657,2]
[383651702,1757071841124,-400.0,0.00024657,2]
[383651703,1757071841133,-400.0,0.00024657,2]
[383651704,1757071841143,-400.0,0.00024657,2]
[383651705,1757071841151,-589.74559443,0.00024657,2]
[383651706,1757071841161,-400.0,0.00024657,2]
[383651707,1757071841171,-400.0,0.00024657,2]
[383651708,1757071841180,-1000.0,0.00024657,2]
[383651709,1757071841190,-400.0,0.00024657,2]
[383651710,1757071841200,-400.0,0.00024657,2]
[383651711,1757071841209,-400.0,0.00024657,2]
[383651712,1757071841218,-400.0,0.00024657,2]
[383651713,1757071841228,-400.0,0.00024657,2]
[383651714,1757071841237,-400.0,0.00024657,2]
[383651715,1757071841246,-400.0,0.00024657,2]
[383651716,1757071841255,-400.0,0.00024657,2]
[383651717,1757071841264,-400.0,0.00024657,2]
[383651718,1757071841274,-400.0,0.00024657,2]
[383651719,1757071841283,-400.0,0.00024657,2]
[383651720,1757071841293,-400.0,0.00024657,2]
[383651721,1757071841302,-400.0,0.00024657,2]
[383651722,1757071841312,-400.0,0.00024657,2]
[383651723,1757071841323,-400.0,0.00024657,2]
[383651724,1757071841333,-400.0,0.00024657,2]
[383651725,1757071841342,-400.0,0.00024657,2]
[383651726,1757071841352,-400.0,0.00024657,2]
[383651727,1757071841361,-400.0,0.00024657,2]
[383651728,1757071841371,-400.0,0.00024657,2]
[383651729,1757071841382,-400.0,0.00024657,2]
[383651730,1757071841391,-400.0,0.00024657,2]
[383651731,1757071841401,-466.51161636,0.00024657,2]
[383651732,1757071841410,-400.0,0.00024657,2]
[383651733,1757071841419,-400.0,0.00024657,2]
[383651734,1757071841429,-408.99536066,0.00024657,2]
[383651735,1757071841440,-400.0,0.00024657,2]
[383651736,1757071841451,-400.0,0.00024657,2]
[383651737,1757071841460,-400.0,0.00024657,2]
[383651738,1757071841469,-400.0,0.00024657,2]
[383651739,1757071841479,-400.0,0.00024657,2]
[383651740,1757071841491,-546.58,0.00024657,2]
[383651741,1757071841502,-400.0,0.00024657,2]
[383651742,1757071841512,-400.0,0.00024657,2]
[383651743,1757071841523,-405.05346748,0.00024657,2]
[383651744,1757071841532,-619.75,0.00024657,2]
[383651745,1757071841541,-3454.41,0.00024657,2]
[383651746,1757071841551,-400.0,0.00024657,2]
[383651747,1757071841560,-400.0,0.00024657,2]
[383651748,1757071841574,-529.11,0.00024657,2]
[383651749,1757071841583,-184.2,0.00024657,2]
[383651750,1757071841593,-400.0,0.00024657,2]
[383651751,1757071841602,-400.0,0.00024657,2]
[383651752,1757071841613,-400.0,0.00024657,2]
[383651753,1757071841623,-400.0,0.00024657,2]
[383651754,1757071841632,-400.0,0.00024657,2]
[383651755,1757071841643,-400.0,0.00024657,2]
[383651756,1757071841653,-400.0,0.00024657,2]
[383651757,1757071841662,-400.0,0.00024657,2]
[383651758,1757071841672,-400.0,0.00024657,2]
[383651759,1757071841681,-921.51,0.00024657,2]
[383651760,1757071841692,-400.0,0.00024657,2]
[383651761,1757071841704,-400.0,0.00024657,2]
[383651762,1757071841713,-400.0,0.00024657,2]
[383651763,1757071841723,-400.0,0.00024657,2]
[383651764,1757071841733,-400.0,0.00024657,2]
[383651765,1757071841742,-400.0,0.00024657,2]
[383651766,1757071841751,-6094.66,0.00024657,2]
[383651767,1757071841761,-400.0,0.00024657,2]
[383651768,1757071841775,-400.0,0.00024657,2]
[383651769,1757071841785,-500.0,0.00024657,2]
[383651770,1757071841794,-500.0,0.00024657,2]
[383651771,1757071841803,-500.0,0.00024657,2]
[383651772,1757071841814,-500.0,0.00024657,2]
[383651773,1757071841823,-500.0,0.00024657,2]
[383651774,1757071841832,-500.0,0.00024657,2]
[383651775,1757071841842,-400.0,0.00024657,2]
[383651776,1757071841851,-500.0,0.00024657,2]
[383651777,1757071841861,-500.0,0.00024657,2]
[383651778,1757071841871,-500.0,0.00024657,2]
[383651779,1757071841880,-400.0,0.00024657,2]
[383651780,1757071841890,-400.0,0.00024657,2]
[383651781,1757071841901,-400.0,0.00024657,2]
[383651782,1757071841910,-405.64735027,0.00024657,2]
[383651783,1757071841919,-400.0,0.00024657,2]
[383651784,1757071841929,-400.0,0.00024657,2]
[383651785,1757071841939,-400.0,0.00024657,2]
[383651786,1757071841949,-400.0,0.00024657,2]
[383651787,1757071841959,-400.0,0.00024657,2]
[383651788,1757071841970,-400.0,0.00024657,2]
[383651789,1757071841980,-400.0,0.00024657,2]
[383651790,1757071841990,-400.0,0.00024657,2]
[383651791,1757071842000,-400.0,0.00024657,2]
[383651792,1757071842010,-400.0,0.00024657,2]
[383651793,1757071842020,-400.0,0.00024657,2]
[383651794,1757071842029,-400.0,0.00024657,2]
[383651795,1757071842039,-400.0,0.00024657,2]
[383651796,1757071842049,-400.0,0.00024657,2]
[383651797,1757071842059,-401.64987546,0.00024657,2]
[383651798,1757071842068,-400.0,0.00024657,2]
[383651799,1757071842080,-400.0,0.00024657,2]
[383651800,1757071842091,-400.0,0.00024657,2]
[383651801,1757071842101,-547.08,0.00024657,2]
[383651802,1757071842112,-400.0,0.00024657,2]
[383651803,1757071842121,-405.14264673,0.00024657,2]
[383651804,1757071842131,-400.0,0.00024657,2]
[383651805,1757071842140,-400.0,0.00024657,2]
[383651806,1757071842149,-400.0,0.00024657,2]
[383651807,1757071842159,-400.0,0.00024657,2]
[383651808,1757071842168,-400.0,0.00024657,2]
[383651809,1757071842179,-400.0,0.00024657,2]
[383651810,1757071842189,-400.0,0.00024657,2]
[383651811,1757071842199,-400.0,0.00024657,2]
[383651812,1757071842208,-400.0,0.00024657,2]